[Event "November 21 Early 2023"]
[Site "https://www.chess.com"]
[Date "2023.11.21"]
[Round "10"]
[White "bn1462"]
[Black "thisjuan"]
[Result "0-1"]
[Board "153"]
[TimeControl "180+1"]
[WhiteElo "1861"]
[BlackElo "2238"]
[WhiteClock "0:00:00"]
[BlackClock "0:00:06"]

1. d4 {[%clk 0:03:00]}  Nf6 {[%clk 0:02:59]} 2. c4 {[%clk 0:03:00]}  e6 {[%clk 0:02:58]} 3. Nf3 {[%clk 0:02:59]}  Bb4+ {[%clk 0:02:57]} 4. Nbd2 {[%clk 0:02:58]}  O-O {[%clk 0:02:54]} 5. g3 {[%clk 0:02:55]}  d6 {[%clk 0:02:53]} 6. Bg2 {[%clk 0:02:55]}  Qe7 {[%clk 0:02:52]} 7. O-O {[%clk 0:02:54]}  Bxd2 {[%clk 0:02:53]} 8. Bxd2 {[%clk 0:02:52]}  Ne4 {[%clk 0:02:51]} 9. Bc3 {[%clk 0:02:48]}  Nxc3 {[%clk 0:02:49]} 10. bxc3 {[%clk 0:02:48]}  Nc6 {[%clk 0:02:48]} 11. Nd2 {[%clk 0:02:39]}  e5 {[%clk 0:02:36]} 12. e3 {[%clk 0:02:26]}  Rb8 {[%clk 0:02:31]} 13. Qa4 {[%clk 0:02:06]}  Bd7 {[%clk 0:02:26]} 14. d5 {[%clk 0:01:38]}  Nd4 {[%clk 0:02:03]} 15. Qxa7 {[%clk 0:01:35]}  Ne2+ {[%clk 0:01:00]} 16. Kh1 {[%clk 0:01:35]}  Bf5 {[%clk 0:00:53]} 17. Rfe1 {[%clk 0:01:16]}  Ra8 {[%clk 0:00:52]} 18. Qxb7 {[%clk 0:01:13]}  Nxc3 {[%clk 0:00:38]} 19. Qb2 {[%clk 0:00:37]}  Na4 {[%clk 0:00:36]} 20. Qc1 {[%clk 0:00:35]}  Nc5 {[%clk 0:00:36]} 21. Qc3 {[%clk 0:00:30]}  Na4 {[%clk 0:00:31]} 22. Qc1 {[%clk 0:00:28]}  Nc5 {[%clk 0:00:29]} 23. Qc3 {[%clk 0:00:22]}  Rfb8 {[%clk 0:00:28]} 24. Nb3 {[%clk 0:00:20]}  Na4 {[%clk 0:00:28]} 25. Qd2 {[%clk 0:00:18]}  h5 {[%clk 0:00:26]} 26. h4 {[%clk 0:00:17]}  Qf6 {[%clk 0:00:25]} 27. Rec1 {[%clk 0:00:17]}  Bg4 {[%clk 0:00:20]} 28. Kg1 {[%clk 0:00:16]}  Bf3 {[%clk 0:00:20]} 29. c5 {[%clk 0:00:12]}  Bxg2 {[%clk 0:00:20]} 30. Kxg2 {[%clk 0:00:13]}  e4 {[%clk 0:00:19]} 31. Rab1 {[%clk 0:00:12]}  Qf3+ {[%clk 0:00:17]} 32. Kg1 {[%clk 0:00:12]}  Nxc5 {[%clk 0:00:14]} 33. Nxc5 {[%clk 0:00:12]}  dxc5 {[%clk 0:00:15]} 34. Rxb8+ {[%clk 0:00:11]}  Rxb8 {[%clk 0:00:15]} 35. Qa5 {[%clk 0:00:10]}  Rb2 {[%clk 0:00:12]} 36. Qe1 {[%clk 0:00:07]}  Rxa2 {[%clk 0:00:11]} 37. Rxc5 {[%clk 0:00:06]}  Re2 {[%clk 0:00:08]} 38. Qf1 {[%clk 0:00:06]}  Rd2 {[%clk 0:00:05]} 39. Rxc7 {[%clk 0:00:04]}  Rxd5 {[%clk 0:00:06]} 40. Rc8+ {[%clk 0:00:04]}  Kh7 {[%clk 0:00:06]} 41. Rc1 {[%clk 0:00:05]}  g6 {[%clk 0:00:06]} 42. Qe1 {[%clk 0:00:04]}  Rf5 {[%clk 0:00:06]} 43. Rc4 {[%clk 0:00:03]}  g5 {[%clk 0:00:05]} 44. Rc1 {[%clk 0:00:03]}  gxh4 {[%clk 0:00:05]} 45. gxh4 {[%clk 0:00:03]}  Rf6 {[%clk 0:00:06]} 46. Kh2 {[%clk 0:00:00]}  Rg6 {[%clk 0:00:06]} 0-1

[Event "November 21 Early 2023"]
[Site "https://www.chess.com"]
[Date "2023.11.21"]
[Round "10"]
[White "Fernandez Sanchez, Mario Andres"]
[Black "GMT4114"]
[Result "0-1"]
[Board "157"]
[TimeControl "180+1"]
[WhiteFideId "6501621"]
[WhiteElo "2050"]
[BlackElo "1946"]
[WhiteTeam "CRC"]
[WhiteClock "0:00:00"]
[BlackClock "0:00:09"]

1. d4 {[%clk 0:03:00]}  e6 {[%clk 0:03:00]} 2. Bf4 {[%clk 0:03:00]}  f5 {[%clk 0:02:59]} 3. e3 {[%clk 0:02:59]}  Nf6 {[%clk 0:02:59]} 4. h4 {[%clk 0:03:00]}  b6 {[%clk 0:02:59]} 5. h5 {[%clk 0:03:00]}  Bb7 {[%clk 0:02:57]} 6. Nf3 {[%clk 0:03:00]}  Bd6 {[%clk 0:02:50]} 7. Nc3 {[%clk 0:02:51]}  Bxf4 {[%clk 0:02:49]} 8. exf4 {[%clk 0:02:52]}  Qe7 {[%clk 0:02:41]} 9. Bc4 {[%clk 0:02:47]}  Nc6 {[%clk 0:02:22]} 10. Qd2 {[%clk 0:02:43]}  Na5 {[%clk 0:02:19]} 11. Bb5 {[%clk 0:02:37]}  a6 {[%clk 0:02:13]} 12. Ba4 {[%clk 0:02:36]}  Nc4 {[%clk 0:02:02]} 13. Qc1 {[%clk 0:02:36]}  Qb4 {[%clk 0:01:52]} 14. Bb3 {[%clk 0:02:35]}  Nd5 {[%clk 0:01:38]} 15. a3 {[%clk 0:02:31]}  Qd6 {[%clk 0:01:12]} 16. Bxc4 {[%clk 0:02:29]}  Nxf4 {[%clk 0:01:12]} 17. O-O {[%clk 0:02:13]}  Bxf3 {[%clk 0:01:07]} 18. gxf3 {[%clk 0:02:08]}  Nxh5 {[%clk 0:00:58]} 19. Qg5 {[%clk 0:02:04]}  Nf6 {[%clk 0:00:46]} 20. Rad1 {[%clk 0:01:55]}  b5 {[%clk 0:00:46]} 21. Bb3 {[%clk 0:01:54]}  O-O-O {[%clk 0:00:45]} 22. d5 {[%clk 0:01:50]}  h6 {[%clk 0:00:43]} 23. Qg3 {[%clk 0:01:49]}  e5 {[%clk 0:00:36]} 24. Rfe1 {[%clk 0:01:37]}  Rde8 {[%clk 0:00:34]} 25. Kf1 {[%clk 0:01:30]}  Nh5 {[%clk 0:00:33]} 26. Qh2 {[%clk 0:01:21]}  Nf4 {[%clk 0:00:30]} 27. Ne2 {[%clk 0:01:21]}  g5 {[%clk 0:00:31]} 28. Ng3 {[%clk 0:01:13]}  Qg6 {[%clk 0:00:27]} 29. c4 {[%clk 0:01:03]}  bxc4 {[%clk 0:00:18]} 30. Bxc4 {[%clk 0:01:04]}  Kb7 {[%clk 0:00:16]} 31. b4 {[%clk 0:01:03]}  h5 {[%clk 0:00:16]} 32. b5 {[%clk 0:01:02]}  a5 {[%clk 0:00:15]} 33. Bd3 {[%clk 0:00:51]}  Rhf8 {[%clk 0:00:11]} 34. Re3 {[%clk 0:00:32]}  h4 {[%clk 0:00:11]} 35. Ne2 {[%clk 0:00:23]}  Nxd5 {[%clk 0:00:11]} 36. Bc4 {[%clk 0:00:17]}  Nxe3+ {[%clk 0:00:11]} 37. fxe3 {[%clk 0:00:18]}  d6 {[%clk 0:00:11]} 38. Bd5+ {[%clk 0:00:17]}  Kb8 {[%clk 0:00:11]} 39. Bc6 {[%clk 0:00:18]}  Re7 {[%clk 0:00:10]} 40. Nc3 {[%clk 0:00:17]}  g4 {[%clk 0:00:11]} 41. Nd5 {[%clk 0:00:16]}  g3 {[%clk 0:00:11]} 42. Qh3 {[%clk 0:00:14]}  Rg7 {[%clk 0:00:10]} 43. Kg2 {[%clk 0:00:15]}  e4 {[%clk 0:00:10]} 44. Nf4 {[%clk 0:00:10]}  exf3+ {[%clk 0:00:08]} 45. Bxf3 {[%clk 0:00:11]}  Qf6 {[%clk 0:00:06]} 46. Qh1 {[%clk 0:00:07]}  Qb2+ {[%clk 0:00:06]} 47. Kh3 {[%clk 0:00:07]}  g2 {[%clk 0:00:05]} 48. Bxg2 {[%clk 0:00:04]}  Rh8 {[%clk 0:00:05]} 49. Qh2 {[%clk 0:00:01]}  Rg3+ {[%clk 0:00:05]} 50. Qxg3 {[%clk 0:00:02]}  hxg3+ {[%clk 0:00:05]} 51. Kxg3 {[%clk 0:00:02]}  Qc3 {[%clk 0:00:04]} 52. Kf3 {[%clk 0:00:03]}  Qc2 {[%clk 0:00:05]} 53. Rf1 {[%clk 0:00:02]}  Qe4+ {[%clk 0:00:05]} 54. Kf2 {[%clk 0:00:02]}  Rg8 {[%clk 0:00:06]} 55. Bxe4 {[%clk 0:00:02]}  fxe4 {[%clk 0:00:06]} 56. Rg1 {[%clk 0:00:03]}  Rf8 {[%clk 0:00:05]} 57. Rg6 {[%clk 0:00:02]}  d5 {[%clk 0:00:06]} 58. Ke2 {[%clk 0:00:02]}  d4 {[%clk 0:00:06]} 59. Ne6 {[%clk 0:00:02]}  d3+ {[%clk 0:00:07]} 60. Kd2 {[%clk 0:00:02]}  Rh8 {[%clk 0:00:08]} 61. Nc5 {[%clk 0:00:01]}  Rh2+ {[%clk 0:00:09]} 62. Kc3 {[%clk 0:00:00]}  Rc2+ {[%clk 0:00:09]} 0-1

[Event "November 21 Early 2023"]
[Site "https://www.chess.com"]
[Date "2023.11.21"]
[Round "10"]
[White "Nikulina, Alena"]
[Black "Gyulamiryan-koryun"]
[Result "0-1"]
[Board "158"]
[TimeControl "180+1"]
[WhiteFideId "4172051"]
[WhiteElo "1627"]
[BlackElo "1900"]
[WhiteTeam "RUS"]
[WhiteClock "0:00:17"]
[BlackClock "0:02:05"]

1. e4 {[%clk 0:00:10]}  c5 {[%clk 0:02:58]} 2. Nf3 {[%clk 0:00:10]}  d6 {[%clk 0:02:58]} 3. d4 {[%clk 0:00:11]}  cxd4 {[%clk 0:02:58]} 4. Nxd4 {[%clk 0:00:12]}  Nf6 {[%clk 0:02:58]} 5. Nc3 {[%clk 0:00:13]}  a6 {[%clk 0:02:58]} 6. h3 {[%clk 0:00:13]}  e5 {[%clk 0:02:55]} 7. Nf3 {[%clk 0:00:13]}  Be6 {[%clk 0:02:53]} 8. Be3 {[%clk 0:00:13]}  Be7 {[%clk 0:02:52]} 9. Be2 {[%clk 0:00:14]}  Nbd7 {[%clk 0:02:53]} 10. O-O {[%clk 0:00:14]}  b5 {[%clk 0:02:53]} 11. Qd2 {[%clk 0:00:15]}  O-O {[%clk 0:02:54]} 12. a3 {[%clk 0:00:15]}  Qc7 {[%clk 0:02:54]} 13. Nd5 {[%clk 0:00:16]}  Bxd5 {[%clk 0:02:50]} 14. exd5 {[%clk 0:00:16]}  e4 {[%clk 0:02:49]} 15. Nd4 {[%clk 0:00:16]}  Ne5 {[%clk 0:02:49]} 16. Nf5 {[%clk 0:00:16]}  Nc4 {[%clk 0:02:32]} 17. Bxc4 {[%clk 0:00:16]}  bxc4 {[%clk 0:02:32]} 18. Nxe7+ {[%clk 0:00:16]}  Qxe7 {[%clk 0:02:31]} 19. Qd4 {[%clk 0:00:17]}  Rac8 {[%clk 0:02:24]} 20. Rfd1 {[%clk 0:00:17]}  Rfd8 {[%clk 0:02:08]} 21. Bg5 {[%clk 0:00:18]}  h6 {[%clk 0:02:06]} 22. Bxf6 {[%clk 0:00:18]}  Qxf6 {[%clk 0:02:06]} 23. Re1 {[%clk 0:00:17]}  Qxd4 {[%clk 0:02:05]} 0-1

[Event "November 21 Early 2023"]
[Site "https://www.chess.com"]
[Date "2023.11.21"]
[Round "11"]
[White "Nihal Sarin"]
[Black "Andreikin, Dmitry"]
[Result "1-0"]
[Board "2"]
[TimeControl "180+1"]
[WhiteFideId "25092340"]
[BlackFideId "4158814"]
[WhiteElo "2689"]
[BlackElo "2741"]
[WhiteTeam "IND"]
[BlackTeam "FID"]
[WhiteClock "0:00:09"]
[BlackClock "0:00:00"]

1. Nf3 {[%clk 0:03:00]}  Nf6 {[%clk 0:02:59]} 2. c4 {[%clk 0:03:00]}  e6 {[%clk 0:02:58]} 3. g3 {[%clk 0:02:59]}  b6 {[%clk 0:02:57]} 4. Bg2 {[%clk 0:02:59]}  Bb7 {[%clk 0:02:57]} 5. d4 {[%clk 0:02:58]}  Bb4+ {[%clk 0:02:56]} 6. Bd2 {[%clk 0:02:58]}  a5 {[%clk 0:02:56]} 7. O-O {[%clk 0:02:57]}  O-O {[%clk 0:02:56]} 8. Bg5 {[%clk 0:02:54]}  Be7 {[%clk 0:02:55]} 9. Nc3 {[%clk 0:02:53]}  Ne4 {[%clk 0:02:54]} 10. Bxe7 {[%clk 0:02:43]}  Qxe7 {[%clk 0:02:55]} 11. Nxe4 {[%clk 0:02:36]}  Bxe4 {[%clk 0:02:56]} 12. Rc1 {[%clk 0:02:36]}  d6 {[%clk 0:02:55]} 13. Nd2 {[%clk 0:02:29]}  Bxg2 {[%clk 0:02:55]} 14. Kxg2 {[%clk 0:02:30]}  Nd7 {[%clk 0:02:51]} 15. e3 {[%clk 0:02:30]}  e5 {[%clk 0:02:48]} 16. Qf3 {[%clk 0:02:27]}  Nf6 {[%clk 0:02:47]} 17. Nb1 {[%clk 0:02:26]}  e4 {[%clk 0:02:41]} 18. Qe2 {[%clk 0:02:17]}  Qe6 {[%clk 0:02:40]} 19. Nc3 {[%clk 0:02:16]}  Rae8 {[%clk 0:02:30]} 20. b3 {[%clk 0:02:13]}  Qf5 {[%clk 0:02:26]} 21. Rc2 {[%clk 0:02:07]}  h5 {[%clk 0:02:25]} 22. h3 {[%clk 0:02:04]}  Nh7 {[%clk 0:02:13]} 23. Nd5 {[%clk 0:02:00]}  c6 {[%clk 0:01:42]} 24. Nxb6 {[%clk 0:02:00]}  h4 {[%clk 0:01:19]} 25. Qg4 {[%clk 0:01:55]}  Qxg4 {[%clk 0:01:16]} 26. hxg4 {[%clk 0:01:56]}  f5 {[%clk 0:01:16]} 27. gxf5 {[%clk 0:01:35]}  Rxf5 {[%clk 0:01:14]} 28. gxh4 {[%clk 0:01:35]}  g5 {[%clk 0:01:09]} 29. Rh1 {[%clk 0:01:19]}  Nf6 {[%clk 0:01:01]} 30. hxg5 {[%clk 0:01:15]}  Rxg5+ {[%clk 0:01:02]} 31. Kf1 {[%clk 0:01:16]}  Ng4 {[%clk 0:01:00]} 32. Na4 {[%clk 0:00:47]}  Rf8 {[%clk 0:00:52]} 33. Ke1 {[%clk 0:00:47]}  Rff5 {[%clk 0:00:41]} 34. Nc3 {[%clk 0:00:47]}  Nf6 {[%clk 0:00:41]} 35. Ne2 {[%clk 0:00:43]}  c5 {[%clk 0:00:37]} 36. dxc5 {[%clk 0:00:42]}  dxc5 {[%clk 0:00:34]} 37. Ng3 {[%clk 0:00:42]}  Rf3 {[%clk 0:00:27]} 38. Rh4 {[%clk 0:00:41]}  Rgxg3 {[%clk 0:00:17]} 39. fxg3 {[%clk 0:00:42]}  Rxe3+ {[%clk 0:00:18]} 40. Kf2 {[%clk 0:00:39]}  Rd3 {[%clk 0:00:18]} 41. Re2 {[%clk 0:00:36]}  Kf7 {[%clk 0:00:18]} 42. Rh8 {[%clk 0:00:25]}  Ke6 {[%clk 0:00:16]} 43. Rc8 {[%clk 0:00:21]}  Ng4+ {[%clk 0:00:08]} 44. Kg2 {[%clk 0:00:21]}  Ne3+ {[%clk 0:00:08]} 45. Kf2 {[%clk 0:00:19]}  Ng4+ {[%clk 0:00:07]} 46. Kg2 {[%clk 0:00:15]}  Ne3+ {[%clk 0:00:07]} 47. Kh3 {[%clk 0:00:16]}  Nf5 {[%clk 0:00:02]} 48. Rxe4+ {[%clk 0:00:14]}  Kd7 {[%clk 0:00:03]} 49. Rg8 {[%clk 0:00:10]}  Rd2 {[%clk 0:00:03]} 50. Re5 {[%clk 0:00:09]}  Nd4 {[%clk 0:00:03]} 51. Rxc5 {[%clk 0:00:09]}  Nf3 {[%clk 0:00:00]} 52. Rd5+ {[%clk 0:00:09]} 1-0

[Event "November 21 Early 2023"]
[Site "https://www.chess.com"]
[Date "2023.11.21"]
[Round "11"]
[White "Pranesh M"]
[Black "Sadhwani, Raunak"]
[Result "0-1"]
[Board "4"]
[TimeControl "180+1"]
[WhiteFideId "35028600"]
[BlackFideId "35093487"]
[WhiteElo "2481"]
[BlackElo "2668"]
[WhiteTeam "IND"]
[BlackTeam "IND"]
[WhiteClock "0:00:05"]
[BlackClock "0:00:14"]

1. e4 {[%clk 0:03:00]}  c6 {[%clk 0:03:00]} 2. d4 {[%clk 0:02:59]}  d5 {[%clk 0:03:01]} 3. e5 {[%clk 0:02:59]}  c5 {[%clk 0:03:00]} 4. dxc5 {[%clk 0:02:59]}  e6 {[%clk 0:02:57]} 5. Be3 {[%clk 0:02:57]}  Nd7 {[%clk 0:02:53]} 6. Bb5 {[%clk 0:02:57]}  Ne7 {[%clk 0:02:47]} 7. Bd4 {[%clk 0:02:49]}  Nc6 {[%clk 0:02:46]} 8. Bxc6 {[%clk 0:02:49]}  bxc6 {[%clk 0:02:47]} 9. b4 {[%clk 0:02:49]}  a5 {[%clk 0:02:41]} 10. a3 {[%clk 0:02:49]}  Ba6 {[%clk 0:02:35]} 11. Nf3 {[%clk 0:02:44]}  Be7 {[%clk 0:02:26]} 12. Nc3 {[%clk 0:02:35]}  O-O {[%clk 0:02:21]} 13. Ne2 {[%clk 0:02:33]}  f6 {[%clk 0:02:15]} 14. O-O {[%clk 0:02:31]}  fxe5 {[%clk 0:02:12]} 15. Nxe5 {[%clk 0:02:32]}  Nxe5 {[%clk 0:02:07]} 16. Bxe5 {[%clk 0:02:32]}  Bf6 {[%clk 0:02:08]} 17. Bxf6 {[%clk 0:02:04]}  Qxf6 {[%clk 0:02:09]} 18. Qd2 {[%clk 0:01:57]}  Bxe2 {[%clk 0:02:02]} 19. Qxe2 {[%clk 0:01:58]}  axb4 {[%clk 0:02:03]} 20. Qe3 {[%clk 0:01:52]}  Ra5 {[%clk 0:01:49]} 21. a4 {[%clk 0:01:35]}  Rfa8 {[%clk 0:01:48]} 22. g3 {[%clk 0:01:21]}  e5 {[%clk 0:01:42]} 23. Rae1 {[%clk 0:01:15]}  Rxa4 {[%clk 0:01:29]} 24. Qxe5 {[%clk 0:01:13]}  Qxe5 {[%clk 0:01:30]} 25. Rxe5 {[%clk 0:01:13]}  R4a5 {[%clk 0:01:04]} 26. Rb1 {[%clk 0:01:06]}  Rb8 {[%clk 0:01:02]} 27. Re7 {[%clk 0:00:58]}  Rxc5 {[%clk 0:01:02]} 28. Ra1 {[%clk 0:00:57]}  Kh8 {[%clk 0:00:56]} 29. Raa7 {[%clk 0:00:55]}  Rg8 {[%clk 0:00:56]} 30. Rab7 {[%clk 0:00:54]}  Rc4 {[%clk 0:00:22]} 31. Red7 {[%clk 0:00:52]}  d4 {[%clk 0:00:22]} 32. h4 {[%clk 0:00:24]}  c5 {[%clk 0:00:20]} 33. g4 {[%clk 0:00:23]}  Rxc2 {[%clk 0:00:17]} 34. g5 {[%clk 0:00:24]}  c4 {[%clk 0:00:15]} 35. Rxb4 {[%clk 0:00:20]}  d3 {[%clk 0:00:13]} 36. h5 {[%clk 0:00:20]}  d2 {[%clk 0:00:13]} 37. Kg2 {[%clk 0:00:21]}  h6 {[%clk 0:00:10]} 38. gxh6 {[%clk 0:00:10]}  c3 {[%clk 0:00:09]} 39. Rbb7 {[%clk 0:00:06]}  Rc1 {[%clk 0:00:08]} 40. hxg7+ {[%clk 0:00:05]}  Kh7 {[%clk 0:00:08]} 41. Rbc7 {[%clk 0:00:02]}  d1=Q {[%clk 0:00:06]} 42. Rxd1 {[%clk 0:00:02]}  Rxd1 {[%clk 0:00:07]} 43. h6 {[%clk 0:00:03]}  Rd6 {[%clk 0:00:06]} 44. Rxc3 {[%clk 0:00:03]}  Rxh6 {[%clk 0:00:07]} 45. Kf1 {[%clk 0:00:04]}  Rxg7 {[%clk 0:00:08]} 46. Ke2 {[%clk 0:00:04]}  Rf7 {[%clk 0:00:08]} 47. f3 {[%clk 0:00:04]}  Rhf6 {[%clk 0:00:09]} 48. Kf2 {[%clk 0:00:05]}  Kg7 {[%clk 0:00:10]} 49. Ra3 {[%clk 0:00:06]}  Kg6 {[%clk 0:00:11]} 50. Rb3 {[%clk 0:00:07]}  Rf5 {[%clk 0:00:12]} 51. Ra3 {[%clk 0:00:08]}  R7f6 {[%clk 0:00:13]} 52. Rb3 {[%clk 0:00:08]}  Kg5 {[%clk 0:00:13]} 53. Ra3 {[%clk 0:00:09]}  Rd5 {[%clk 0:00:14]} 54. Ke3 {[%clk 0:00:08]}  Kf5 {[%clk 0:00:14]} 55. Kf2 {[%clk 0:00:08]}  Re6 {[%clk 0:00:13]} 56. Kg3 {[%clk 0:00:09]}  Rg6+ {[%clk 0:00:12]} 57. Kf2 {[%clk 0:00:09]}  Rb5 {[%clk 0:00:12]} 58. Ke3 {[%clk 0:00:08]}  Re6+ {[%clk 0:00:11]} 59. Kf2 {[%clk 0:00:09]}  Reb6 {[%clk 0:00:10]} 60. Kg3 {[%clk 0:00:09]}  Rb1 {[%clk 0:00:11]} 61. Ra5+ {[%clk 0:00:08]}  R6b5 {[%clk 0:00:11]} 62. Ra8 {[%clk 0:00:09]}  R5b2 {[%clk 0:00:12]} 63. Rf8+ {[%clk 0:00:10]}  Ke6 {[%clk 0:00:12]} 64. Re8+ {[%clk 0:00:10]}  Kf7 {[%clk 0:00:13]} 65. Re4 {[%clk 0:00:11]}  Rg1+ {[%clk 0:00:13]} 66. Kf4 {[%clk 0:00:11]}  Kf6 {[%clk 0:00:13]} 67. Ra4 {[%clk 0:00:11]}  Re1 {[%clk 0:00:12]} 68. Kg3 {[%clk 0:00:11]}  Rb3 {[%clk 0:00:10]} 69. Ra6+ {[%clk 0:00:11]}  Kf5 {[%clk 0:00:10]} 70. Ra5+ {[%clk 0:00:11]}  Re5 {[%clk 0:00:11]} 71. Ra8 {[%clk 0:00:12]}  Ree3 {[%clk 0:00:11]} 72. Rf8+ {[%clk 0:00:12]}  Ke5 {[%clk 0:00:12]} 73. Re8+ {[%clk 0:00:12]}  Kd4 {[%clk 0:00:12]} 74. Rd8+ {[%clk 0:00:13]}  Kc4 {[%clk 0:00:11]} 75. Rf8 {[%clk 0:00:12]}  Kd3 {[%clk 0:00:12]} 76. Kg4 {[%clk 0:00:12]}  Ke2 {[%clk 0:00:11]} 77. f4 {[%clk 0:00:12]}  Rg3+ {[%clk 0:00:11]} 78. Kf5 {[%clk 0:00:13]}  Kf3 {[%clk 0:00:12]} 79. Ke5 {[%clk 0:00:06]}  Rb5+ {[%clk 0:00:12]} 80. Ke6 {[%clk 0:00:06]}  Rg6+ {[%clk 0:00:12]} 81. Ke7 {[%clk 0:00:06]}  Rb7+ {[%clk 0:00:12]} 82. Kd8 {[%clk 0:00:05]}  Ra6 {[%clk 0:00:12]} 83. Kc8 {[%clk 0:00:05]}  Ra8+ {[%clk 0:00:13]} 84. Kxb7 {[%clk 0:00:05]}  Rxf8 {[%clk 0:00:14]} 0-1

[Event "November 21 Early 2023"]
[Site "https://www.chess.com"]
[Date "2023.11.21"]
[Round "11"]
[White "Van Foreest, Jorden"]
[Black "Bortnyk, Olexandr"]
[Result "1-0"]
[Board "5"]
[TimeControl "180+1"]
[WhiteFideId "1039784"]
[BlackFideId "14120828"]
[WhiteElo "2664"]
[BlackElo "2725"]
[WhiteTeam "NED"]
[BlackTeam "UKR"]
[WhiteClock "0:01:03"]
[BlackClock "0:00:39"]

1. e4 {[%clk 0:02:54]}  Nf6 {[%clk 0:03:00]} 2. e5 {[%clk 0:02:50]}  Nd5 {[%clk 0:03:00]} 3. d4 {[%clk 0:02:51]}  d6 {[%clk 0:03:01]} 4. Nf3 {[%clk 0:02:51]}  dxe5 {[%clk 0:03:01]} 5. Nxe5 {[%clk 0:02:51]}  c6 {[%clk 0:03:02]} 6. Bc4 {[%clk 0:02:45]}  Nd7 {[%clk 0:03:02]} 7. Nf3 {[%clk 0:02:45]}  N7f6 {[%clk 0:03:02]} 8. O-O {[%clk 0:02:44]}  Bg4 {[%clk 0:03:02]} 9. h3 {[%clk 0:02:44]}  Bxf3 {[%clk 0:03:02]} 10. Qxf3 {[%clk 0:02:43]}  Nb6 {[%clk 0:03:03]} 11. Qd3 {[%clk 0:02:43]}  Nxc4 {[%clk 0:03:03]} 12. Qxc4 {[%clk 0:02:44]}  Qd5 {[%clk 0:03:01]} 13. Qb3 {[%clk 0:02:38]}  O-O-O {[%clk 0:02:47]} 14. Be3 {[%clk 0:02:34]}  e6 {[%clk 0:02:45]} 15. c4 {[%clk 0:02:33]}  Qa5 {[%clk 0:02:42]} 16. Nc3 {[%clk 0:02:31]}  Bb4 {[%clk 0:02:36]} 17. a3 {[%clk 0:02:31]}  Bxc3 {[%clk 0:02:36]} 18. bxc3 {[%clk 0:02:32]}  Ne4 {[%clk 0:02:33]} 19. Rfc1 {[%clk 0:02:27]}  Rd7 {[%clk 0:02:29]} 20. Qb4 {[%clk 0:02:24]}  Qf5 {[%clk 0:02:24]} 21. Rab1 {[%clk 0:02:06]}  g5 {[%clk 0:02:11]} 22. f3 {[%clk 0:02:04]}  Ng3 {[%clk 0:02:09]} 23. Kf2 {[%clk 0:01:52]}  Ne4+ {[%clk 0:02:04]} 24. Kg1 {[%clk 0:01:52]}  Ng3 {[%clk 0:02:05]} 25. Kh2 {[%clk 0:01:44]}  Ne2 {[%clk 0:02:00]} 26. Re1 {[%clk 0:01:45]}  Qd3 {[%clk 0:01:47]} 27. Bxg5 {[%clk 0:01:29]}  Rg8 {[%clk 0:01:37]} 28. Qa5 {[%clk 0:01:28]}  b6 {[%clk 0:01:04]} 29. Rxb6 {[%clk 0:01:06]}  Rxg5 {[%clk 0:01:01]} 30. Rxc6+ {[%clk 0:01:05]}  Kb8 {[%clk 0:00:47]} 31. Qb4+ {[%clk 0:01:05]}  Rb5 {[%clk 0:00:39]} 32. Qf8+ {[%clk 0:01:03]} 1-0

[Event "November 21 Early 2023"]
[Site "https://www.chess.com"]
[Date "2023.11.21"]
[Round "11"]
[White "Henriquez Villagra, Cristobal"]
[Black "Le, Tuan Minh"]
[Result "1-0"]
[Board "6"]
[TimeControl "180+1"]
[WhiteFideId "3409350"]
[BlackFideId "12401153"]
[WhiteElo "2572"]
[BlackElo "2561"]
[WhiteTeam "CHI"]
[BlackTeam "VIE"]
[WhiteClock "0:00:08"]
[BlackClock "0:00:04"]

1. e4 {[%clk 0:03:00]}  e5 {[%clk 0:02:55]} 2. Nf3 {[%clk 0:02:59]}  Nc6 {[%clk 0:02:54]} 3. g3 {[%clk 0:02:57]}  Bc5 {[%clk 0:02:50]} 4. Bg2 {[%clk 0:02:57]}  d6 {[%clk 0:02:48]} 5. O-O {[%clk 0:02:44]}  Nf6 {[%clk 0:02:47]} 6. Nc3 {[%clk 0:02:38]}  O-O {[%clk 0:02:46]} 7. d3 {[%clk 0:02:36]}  h6 {[%clk 0:02:46]} 8. Na4 {[%clk 0:02:36]}  Bb6 {[%clk 0:02:45]} 9. Nxb6 {[%clk 0:02:35]}  axb6 {[%clk 0:02:46]} 10. c4 {[%clk 0:02:25]}  Nd7 {[%clk 0:02:43]} 11. b3 {[%clk 0:02:24]}  Nc5 {[%clk 0:02:43]} 12. Bb2 {[%clk 0:01:33]}  Bg4 {[%clk 0:02:21]} 13. h3 {[%clk 0:01:31]}  Bxf3 {[%clk 0:02:21]} 14. Bxf3 {[%clk 0:01:32]}  Ne6 {[%clk 0:02:07]} 15. h4 {[%clk 0:01:28]}  Ned4 {[%clk 0:02:04]} 16. Bg4 {[%clk 0:01:28]}  Qe7 {[%clk 0:01:59]} 17. a3 {[%clk 0:01:19]}  Rae8 {[%clk 0:01:55]} 18. Bh3 {[%clk 0:01:16]}  f5 {[%clk 0:01:52]} 19. exf5 {[%clk 0:01:13]}  Nxf5 {[%clk 0:01:52]} 20. Bg2 {[%clk 0:01:14]}  Rf6 {[%clk 0:01:44]} 21. h5 {[%clk 0:01:02]}  Kh8 {[%clk 0:01:40]} 22. Be4 {[%clk 0:00:57]}  Ref8 {[%clk 0:01:36]} 23. Qg4 {[%clk 0:00:47]}  Qf7 {[%clk 0:01:34]} 24. Rae1 {[%clk 0:00:41]}  Nfd4 {[%clk 0:01:25]} 25. f4 {[%clk 0:00:30]}  Nxb3 {[%clk 0:01:25]} 26. Bd5 {[%clk 0:00:30]}  Qe8 {[%clk 0:01:25]} 27. Bxc6 {[%clk 0:00:25]}  bxc6 {[%clk 0:00:57]} 28. fxe5 {[%clk 0:00:25]}  Rxf1+ {[%clk 0:00:57]} 29. Rxf1 {[%clk 0:00:26]}  Rxf1+ {[%clk 0:00:58]} 30. Kxf1 {[%clk 0:00:27]}  dxe5 {[%clk 0:00:59]} 31. Qe2 {[%clk 0:00:21]}  Qf7+ {[%clk 0:00:48]} 32. Kg2 {[%clk 0:00:21]}  Nc5 {[%clk 0:00:35]} 33. Bxe5 {[%clk 0:00:19]}  Ne6 {[%clk 0:00:27]} 34. d4 {[%clk 0:00:17]}  Kg8 {[%clk 0:00:24]} 35. a4 {[%clk 0:00:17]}  Qd7 {[%clk 0:00:20]} 36. Qg4 {[%clk 0:00:16]}  Qf7 {[%clk 0:00:21]} 37. Qg6 {[%clk 0:00:14]}  Qe7 {[%clk 0:00:16]} 38. Qf5 {[%clk 0:00:09]}  Nf8 {[%clk 0:00:12]} 39. Qc8 {[%clk 0:00:09]}  Qf7 {[%clk 0:00:03]} 40. Qxc7 {[%clk 0:00:08]}  Ne6 {[%clk 0:00:02]} 41. Qxf7+ {[%clk 0:00:08]}  Kxf7 {[%clk 0:00:03]} 42. c5 {[%clk 0:00:08]}  bxc5 {[%clk 0:00:03]} 43. a5 {[%clk 0:00:09]}  c4 {[%clk 0:00:02]} 44. a6 {[%clk 0:00:09]}  c3 {[%clk 0:00:03]} 45. d5 {[%clk 0:00:07]}  cxd5 {[%clk 0:00:03]} 46. Bxc3 {[%clk 0:00:07]}  Nc7 {[%clk 0:00:03]} 47. a7 {[%clk 0:00:07]}  g6 {[%clk 0:00:03]} 48. hxg6+ {[%clk 0:00:04]}  Kxg6 {[%clk 0:00:04]} 49. Kf3 {[%clk 0:00:05]}  Kf5 {[%clk 0:00:03]} 50. g4+ {[%clk 0:00:05]}  Kg5 {[%clk 0:00:03]} 51. Bd2+ {[%clk 0:00:05]}  Kg6 {[%clk 0:00:04]} 52. Kg3 {[%clk 0:00:06]}  d4 {[%clk 0:00:03]} 53. Kh4 {[%clk 0:00:06]}  d3 {[%clk 0:00:03]} 54. Bc3 {[%clk 0:00:04]}  Na8 {[%clk 0:00:03]} 55. Ba5 {[%clk 0:00:05]}  Kg7 {[%clk 0:00:03]} 56. Kh5 {[%clk 0:00:05]}  Kh7 {[%clk 0:00:04]} 57. Bd2 {[%clk 0:00:04]}  Kg7 {[%clk 0:00:03]} 58. Bxh6+ {[%clk 0:00:05]}  Kf7 {[%clk 0:00:04]} 59. g5 {[%clk 0:00:05]}  Kg8 {[%clk 0:00:02]} 60. g6 {[%clk 0:00:06]}  Nb6 {[%clk 0:00:03]} 61. Bd2 {[%clk 0:00:06]}  Kg7 {[%clk 0:00:03]} 62. Bc3+ {[%clk 0:00:06]}  Kg8 {[%clk 0:00:03]} 63. Kh6 {[%clk 0:00:06]}  Na8 {[%clk 0:00:04]} 64. Ba5 {[%clk 0:00:06]}  Kh8 {[%clk 0:00:03]} 65. g7+ {[%clk 0:00:06]}  Kg8 {[%clk 0:00:04]} 66. Kg6 {[%clk 0:00:07]}  d2 {[%clk 0:00:04]} 67. Bxd2 {[%clk 0:00:07]}  Nc7 {[%clk 0:00:05]} 68. Ba5 {[%clk 0:00:08]}  Na8 {[%clk 0:00:04]} 69. Kh6 {[%clk 0:00:08]} 1-0